bitfinex/quotes_SOLUSD_20240813
["timestamp","ask_amount","ask_price","bid_price","bid_amount"]
[1723560346954,39.4,146.0,145.94,46.37017486]
[1723560347769,39.4,146.03,145.95,0.37647]
[1723560348257,39.4,146.03,145.95,20.37647]
[1723560348451,39.4,146.05,145.97,21.555]
[1723560348637,39.4,146.05,145.98,20.12549]
[1723560348842,23.7124,146.12,145.99,45.0]
[1723560348843,6.6023,146.12,145.99,45.0]
[1723560349147,28.87267471,146.11,145.99,45.0]
[1723560349342,39.4,146.06,145.99,45.0]
[1723560350342,39.4,146.06,146.0,0.12549]
[1723560350559,39.4,146.09,146.0,0.12549]
[1723560350763,20.0,146.08,146.0,0.25098]
[1723560351068,39.4,146.09,146.0,0.25098]
[1723560351272,39.4,146.09,146.0,20.25098]
[1723560351576,39.4,146.09,146.01,45.0]
[1723560351761,46.56081477,146.11,146.02,0.25098]
[1723560351945,46.56081477,146.11,146.04,16.0956]
[1723560351946,39.4,146.11,146.04,16.0956]
[1723560352148,39.4,146.13,146.05,45.12549]
[1723560352368,39.4,146.13,146.05,51.15969]
[1723560352572,2.77521492,146.14,146.06,0.25098]
[1723560352869,42.1244722,146.19,146.09,0.12549]
[1723560353037,42.1244722,146.19,146.09,45.50196]
[1723560353038,39.4,146.19,146.09,45.50196]
[1723560353241,39.4,146.19,146.11,0.12549]
[1723560353441,39.4,146.19,146.11,45.37647]
[1723560353657,39.4,146.19,146.12,1.36785071]
[1723560353861,39.4,146.19,146.11,45.25098]
[1723560354139,39.4,146.19,146.12,0.12549]
[1723560354344,20.0,146.18,146.12,0.25098]
[1723560354557,20.0,146.2,146.11,45.12549]
[1723560354762,39.4,146.19,146.11,45.0]
[1723560354964,20.0,146.18,146.11,45.0]
[1723560355162,20.0,146.18,146.12,0.25098]
[1723560355439,9.95961361,146.22,146.12,0.25098]
[1723560355440,46.55532449,146.22,146.13,6.6505]
[1723560355644,39.4,146.22,146.15,16.4268]
[1723560355867,39.4,146.22,146.16,45.0]
[1723560356075,39.4,146.22,146.16,46.36816384]
[1723560356373,39.4,146.22,146.17,1.36732142]
[1723560356579,39.4,146.24,146.16,45.0]
[1723560356876,46.238,146.24,146.17,0.12549]
[1723560357042,39.4,146.24,146.17,0.12549]
[1723560357251,39.4,146.24,146.16,45.0]
[1723560357468,46.2382,146.24,146.16,45.0]
[1723560357646,39.4,146.24,146.17,0.37647]
[1723560358657,39.4,146.24,146.17,0.25098]
[1723560359750,20.0,146.23,146.17,0.25098]
[1723560360674,39.4,146.26,146.17,0.25098]
[1723560360879,46.2383,146.24,146.17,20.25098]
[1723560361044,1.70988489,146.23,146.18,45.0]
[1723560361480,39.4,146.24,146.18,45.0]
[1723560361673,39.4,146.26,146.19,0.12549]
[1723560361848,39.4,146.28,146.19,0.12549]
[1723560362050,39.4,146.3,146.21,0.12549]
[1723560362267,39.4,146.3,146.21,65.37647]
[1723560362860,46.2344,146.32,146.21,65.37647]
[1723560363457,39.4,146.32,146.22,0.12549]
[1723560363656,39.4,146.32,146.23,0.12549]
[1723560363879,39.4,146.32,146.23,0.37647]
[1723560364664,20.0,146.31,146.23,0.37647]
[1723560364884,39.4,146.32,146.24,0.12549]
[1723560365087,39.4,146.34,146.25,0.12549]
[1723560365252,39.4,146.34,146.27,0.12549]
[1723560365457,0.8275496,146.35,146.27,0.37647]
[1723560365656,0.8275496,146.35,146.27,45.37647]
[1723560365876,0.3275496,146.35,146.27,65.37647]
[1723560366179,46.2347,146.32,146.27,45.0]
[1723560366382,39.4,146.3,146.26,6.6196]
[1723560366884,39.4,146.32,146.26,6.6196]
[1723560367088,20.0,146.31,146.26,6.6196]
[1723560367878,20.0,146.31,146.27,45.0]
[1723560368076,39.4,146.32,146.27,45.0]
[1723560368279,20.0,146.31,146.27,45.0]
[1723560368777,39.4,146.34,146.27,45.0]
[1723560368986,20.0,146.33,146.27,45.0]
[1723560369284,0.3275496,146.35,146.27,45.0]
[1723560369486,39.7275496,146.35,146.28,0.12549]
[1723560369653,20.0,146.34,146.28,0.25098]
[1723560369857,20.0,146.34,146.28,0.12549]
[1723560370059,20.0,146.34,146.28,0.25098]
[1723560370284,20.0,146.34,146.29,0.25098]
[1723560370486,20.0,146.34,146.28,0.12549]
[1723560370872,20.0,146.34,146.28,0.25098]
[1723560371262,0.3275496,146.35,146.3,0.12549]
[1723560371478,0.3275496,146.35,146.3,45.37647]
[1723560371683,0.3275496,146.35,146.3,45.12549]
[1723560371886,39.7275496,146.35,146.3,45.0]
[1723560372870,46.5604496,146.35,146.3,45.0]
[1723560373067,39.7275496,146.35,146.3,45.0]
[1723560373392,39.7275496,146.35,146.29,15.1633]
[1723560373393,39.4,146.33,146.29,15.1633]
[1723560373693,39.4,146.31,146.29,15.1633]
[1723560374798,39.4,146.31,146.26,6.6196]
[1723560374969,20.0,146.3,146.26,6.6196]
[1723560376275,20.0,146.3,146.27,45.0]
[1723560376591,20.0,146.3,146.26,6.6196]
[1723560376894,20.0,146.3,146.27,45.0]
[1723560377186,20.0,146.3,146.26,6.6196]
[1723560377384,39.4,146.29,146.25,15.774]
[1723560378190,46.2358,146.29,146.25,15.774]
[1723560378376,39.4,146.29,146.25,15.774]
[1723560379266,6.838,146.24,146.21,15.8487]
[1723560379461,39.4,146.23,146.21,15.8487]
[1723560379675,39.4,146.25,146.21,15.8487]
[1723560379882,20.12549,146.28,146.21,15.8487]
[1723560379883,39.4,146.27,146.21,15.8487]
[1723560380083,20.0,146.26,146.21,15.8487]
[1723560380596,20.0,146.26,146.22,45.0]
[1723560380893,20.0,146.28,146.22,45.12549]
[1723560381057,20.0,146.28,146.22,45.0]
[1723560381258,26.8362,146.28,146.22,45.0]
[1723560381458,20.0,146.28,146.22,45.0]
[1723560381692,20.0,146.28,146.23,1.36634906]
[1723560382001,20.0,146.28,146.22,45.0]
[1723560382491,46.2376,146.25,146.21,15.8487]
[1723560382668,39.4,146.25,146.21,15.8487]
[1723560382869,39.4,146.23,146.16,15.3636]
[1723560383175,39.4,146.19,146.16,15.3636]
[1723560383890,39.4,146.17,146.11,15.3636]
[1723560384085,46.2417,146.17,146.11,15.3636]
[1723560384296,39.4,146.15,146.11,15.3636]
[1723560384970,39.4,146.17,146.11,15.3636]
[1723560385494,20.0,146.22,146.11,15.3636]
[1723560385798,20.0,146.22,146.12,46.38174065]
[1723560385972,20.0,146.22,146.14,0.12549]
[1723560386185,20.0,146.22,146.14,45.25098]
[1723560386479,20.0,146.22,146.15,0.12549]
[1723560386693,20.0,146.22,146.15,0.25098]
[1723560387376,20.0,146.22,146.15,20.25098]
[1723560387575,20.0,146.22,146.16,46.19727]
[1723560387881,20.0,146.22,146.16,45.0]
[1723560388080,39.4,146.21,146.16,45.0]
[1723560389172,39.4,146.19,146.16,45.0]
[1723560389378,39.4,146.19,146.11,15.3636]
[1723560389584,39.4,146.19,146.12,45.0]
[1723560390693,46.2404,146.19,146.11,15.3636]
[1723560390872,46.2415,146.17,146.11,15.3636]
[1723560391077,39.4,146.17,146.11,15.3636]
[1723560392390,39.4,146.17,146.12,45.0]
[1723560392595,39.4,146.19,146.12,45.84387637]
[1723560392775,20.0,146.18,146.13,1.36838236]
[1723560393593,20.0,146.18,146.12,45.0]
[1723560393899,20.0,146.18,146.13,0.12549]
[1723560394277,39.4,146.19,146.13,0.12549]
[1723560394796,39.4,146.21,146.13,21.74408957]
[1723560394969,46.2395,146.21,146.14,45.0]
[1723560395286,26.8399,146.2,146.14,45.0]
[1723560395996,20.0,146.2,146.14,45.0]
[1723560396480,20.0,146.2,146.15,1.36750073]
[1723560396796,20.0,146.2,146.14,45.0]
[1723560397097,20.0,146.2,146.15,1.3681966]
[1723560397267,20.0,146.2,146.14,45.0]
[1723560397776,39.4,146.21,146.15,1.61875317]
[1723560398184,6.8382,146.24,146.16,0.12549]
[1723560398185,39.4,146.23,146.16,0.12549]
[1723560398388,39.4,146.21,146.16,45.0]
[1723560398583,39.4,146.21,146.14,45.0]
[1723560399373,39.4,146.21,146.15,0.25098]
[1723560399800,39.4,146.23,146.15,0.25098]
[1723560400095,39.4,146.25,146.17,16.3977]
[1723560400276,39.4,146.25,146.18,51.65307]
[1723560400996,39.4,146.25,146.18,51.52758]
[1723560401169,39.4,146.23,146.18,51.2766]
[1723560401371,6.841,146.18,146.14,6.2766]
[1723560401572,39.4,146.17,146.13,16.3977]
[1723560403105,39.4,146.15,146.1,6.2766]
[1723560404281,39.4,146.15,146.11,45.0]
[1723560404701,39.4,146.17,146.11,45.0]
[1723560404903,39.4,146.19,146.11,45.0]
[1723560405109,20.0,146.18,146.11,45.0]
[1723560405483,20.0,146.18,146.12,0.12549]
[1723560407002,39.4,146.15,146.1,6.2766]
[1723560408619,39.4,146.15,146.11,45.0]
[1723560412236,39.4,146.13,146.06,6.2395]
[1723560412527,39.4,146.1,146.05,16.6015]
[1723560412712,39.4,146.08,146.05,16.6015]
[1723560413123,39.4,146.08,145.97,256.5]
[1723560413124,39.4,146.06,146.0,16.6015]
[1723560413432,39.4,146.1,146.0,16.6015]
[1723560414234,39.4,146.12,146.0,17.97070853]
[1723560414524,53.06789212,146.16,146.02,22.0929]
[1723560414525,39.4,146.14,146.02,22.0929]
[1723560414710,39.4,146.14,146.04,0.12549]
[1723560414912,39.4,146.12,146.04,0.12549]
[1723560415118,39.4,146.12,146.03,65.0]
[1723560415423,39.4,146.1,146.03,65.0]
[1723560415618,39.4,146.1,146.03,64.885]
[1723560416203,2.75498341,146.15,146.03,64.885]
[1723560416204,39.4,146.12,146.03,64.885]
[1723560416522,39.4,146.14,146.03,64.885]
[1723560416730,20.12549,146.13,146.04,0.12549]
[1723560416933,39.4,146.12,146.04,0.37647]
[1723560417425,39.4,146.14,146.04,0.37647]
[1723560417604,39.4,146.14,146.05,0.12549]
[1723560417808,39.4,146.14,146.06,0.12549]
[1723560418834,39.4,146.14,146.06,0.25098]
[1723560419221,39.4,146.16,146.07,0.12549]
[1723560419606,20.0,146.15,146.07,0.37647]
[1723560419803,20.0,146.15,146.08,15.2083]
[1723560420333,20.0,146.15,146.09,45.12549]
[1723560420521,20.0,146.15,146.09,45.0]
[1723560420724,6.8427,146.14,146.08,15.2083]
[1723560421029,39.4,146.12,146.08,15.2083]
[1723560421435,39.4,146.14,146.08,15.2083]
[1723560421607,39.4,146.12,146.08,15.2083]
[1723560422106,39.4,146.14,146.08,15.2083]
[1723560422415,39.4,146.14,146.09,45.0]
[1723560423107,20.0,146.15,146.09,45.0]
[1723560423334,39.4,146.16,146.1,1.36818526]
[1723560423632,39.4,146.2,146.11,1.61850977]
[1723560423802,39.4,146.2,146.11,45.25098]
[1723560424147,39.4,146.16,146.11,45.0]
[1723560424322,39.4,146.14,146.08,15.2083]
[1723560424634,7.15466845,146.21,146.08,15.2083]
[1723560424635,39.4,146.12,146.08,15.2083]
[1723560425132,39.4,146.1,146.08,15.2083]
[1723560425424,46.2449,146.1,146.0,22.1266]
[1723560425628,39.4,146.08,146.0,22.1266]
[1723560425831,39.4,146.1,146.0,22.1266]
[1723560426029,39.4,146.12,146.01,0.51730241]
[1723560426240,20.0,146.11,146.0,22.1266]
[1723560426409,20.0,146.11,146.01,1.36917373]
[1723560426730,39.4,146.12,146.03,16.5898]
[1723560426935,39.4,146.14,146.04,21.36899761]
[1723560427106,39.4,146.14,146.06,0.12549]
[1723560427315,39.4,146.16,146.07,6.0733]
[1723560427514,39.4,146.16,146.09,15.604]
[1723560428045,39.4,146.16,146.1,45.0]
[1723560428536,39.4,146.18,146.1,45.0]
[1723560428834,39.4,146.2,146.11,20.0]
[1723560429141,39.4,146.18,146.12,45.0]
[1723560429537,2.69144728,146.23,146.12,45.0]
[1723560429715,46.239,146.22,146.14,21.8906]
[1723560429911,6.0635,146.28,146.15,45.0]
[1723560429912,39.4,146.2,146.15,45.0]
[1723560430126,39.4,146.23,146.14,21.8906]
[1723560430442,39.4,146.16,146.14,15.3141]
[1723560430735,39.4,146.16,146.1,21.8906]
[1723560431043,39.4,146.13,146.1,15.3141]
[1723560431415,39.4,146.11,146.06,23.1366]
[1723560431735,1.711486,146.1,146.06,23.1366]
[1723560432044,39.4,146.09,146.06,16.6539]
[1723560432334,1.71158239,146.08,146.06,16.6539]
[1723560432534,39.4,146.09,146.06,16.6539]
[1723560433405,39.4,146.13,146.06,16.6539]
[1723560433635,39.4,146.17,146.07,20.0]
[1723560433822,39.4,146.17,146.08,0.77912616]
[1723560434136,39.4,146.17,146.09,0.12549]
[1723560434340,39.4,146.19,146.11,22.2992]
[1723560434644,39.4,146.23,146.13,0.12549]
[1723560434935,39.4,146.23,146.13,0.37647]
[1723560435329,39.4,146.25,146.14,0.12549]
[1723560435534,39.4,146.25,146.15,0.12549]
[1723560435852,19.72953447,146.29,146.15,0.12549]
[1723560435853,39.4,146.23,146.15,0.25098]
[1723560436355,39.4,146.23,146.16,0.12549]
[1723560436521,39.4,146.23,146.15,0.12549]
[1723560436717,39.4,146.23,146.15,0.25098]
[1723560436949,39.4,146.23,146.15,0.12549]
[1723560437728,39.4,146.23,146.15,1.4936214]
[1723560437923,39.4,146.23,146.15,0.12549]
[1723560438239,46.2385,146.23,146.15,0.12549]
[1723560438437,39.4,146.23,146.15,0.12549]
[1723560438627,39.4,146.25,146.16,0.12549]
[1723560438953,39.4,146.27,146.18,0.12549]
[1723560439152,39.4,146.27,146.18,0.25098]
[1723560439323,39.4,146.27,146.18,65.25098]
[1723560440254,20.0,146.26,146.18,65.25098]
[1723560440559,39.4,146.29,146.2,0.12549]
[1723560440853,39.4,146.29,146.2,66.74403132]
[1723560441634,39.4,146.29,146.2,65.37647]
[1723560442133,20.0,146.28,146.2,65.37647]
[1723560443454,20.0,146.28,146.21,0.12549]
[1723560443635,39.4,146.29,146.22,0.12549]
[1723560443846,39.4,146.29,146.22,0.37647]
[1723560444023,46.2357,146.29,146.22,0.25098]
[1723560444230,46.2357,146.29,146.21,0.12549]
[1723560444231,46.2367,146.27,146.21,0.12549]
[1723560444524,39.4,146.27,146.2,20.0]
[1723560444725,47.9463974,146.27,146.2,20.0]
[1723560444932,46.238,146.25,146.19,6.5486]
[1723560445145,39.4,146.23,146.19,6.5486]
[1723560445343,1.71001362,146.22,146.19,6.5486]
[1723560445555,39.4,146.23,146.19,6.5486]
[1723560445855,1.70982895,146.22,146.17,16.137]
[1723560446059,46.2388,146.23,146.17,16.137]
[1723560446229,39.4,146.23,146.17,16.137]
[1723560446750,39.4,146.23,146.18,1.3680231]
[1723560447127,39.4,146.23,146.18,46.3680231]
[1723560447629,39.4,146.23,146.17,16.137]
[1723560447630,46.2404,146.19,146.17,16.137]
[1723560447824,1.71037471,146.18,146.13,15.4954]
[1723560448055,1.71055894,146.17,146.13,15.4954]
[1723560448241,1.71053516,146.18,146.13,15.4954]
[1723560448439,39.4,146.19,146.13,15.4954]
[1723560448835,39.4,146.17,146.13,15.4954]
[1723560449855,39.4,146.19,146.13,15.4954]
[1723560450061,20.0,146.18,146.13,15.4954]
[1723560450864,39.4,146.21,146.13,15.4954]
[1723560451061,20.0,146.2,146.14,45.12549]
[1723560451443,39.4,146.23,146.14,45.12549]
[1723560451770,20.0,146.22,146.14,45.12549]
[1723560451941,39.4,146.23,146.15,1.36679356]
[1723560452141,39.4,146.23,146.16,0.12549]
[1723560452341,39.4,146.23,146.14,45.25098]
[1723560452548,39.4,146.23,146.15,0.25098]
[1723560452772,39.4,146.23,146.16,0.12549]
[1723560452975,39.4,146.23,146.16,1.49276784]
[1723560453147,46.2396,146.21,146.14,45.0]
[1723560453350,7.1535536,146.25,146.14,45.0]
[1723560453351,39.4,146.19,146.14,45.0]
[1723560453655,41.11036424,146.19,146.14,45.0]
[1723560454769,39.4,146.19,146.14,45.0]
[1723560455352,20.0,146.22,146.15,0.12549]
[1723560455865,20.0,146.22,146.15,1.49360061]
[1723560456064,6.8399,146.2,146.14,45.0]
[1723560456271,20.0,146.22,146.13,15.4954]
[1723560456272,39.4,146.17,146.13,15.4954]
[1723560456450,39.4,146.18,146.13,15.4954]
[1723560457143,20.0,146.19,146.13,15.4954]
[1723560457144,39.4,146.16,146.13,15.4954]
[1723560458055,1.8363416,146.18,146.0,256.5]
[1723560458056,46.2428,146.14,146.1,15.8316]
[1723560458376,1.71107781,146.13,146.1,15.8316]
[1723560458578,39.4,146.14,146.1,15.8316]
[1723560458748,1.71103076,146.13,146.1,15.8316]
[1723560459255,20.0,146.14,146.1,15.8316]
[1723560459664,39.4,146.2,146.1,15.8316]
[1723560459856,39.4,146.2,146.12,0.12549]
[1723560460179,39.4,146.2,146.12,45.37647]
[1723560460348,39.4,146.2,146.12,45.0]
[1723560460855,39.4,146.2,146.13,1.7449865]
[1723560461059,39.4,146.2,146.13,0.37647]
[1723560461257,20.0,146.19,146.13,0.37647]
[1723560461879,26.8407,146.19,146.12,45.0]
[1723560462066,6.8409,146.18,146.12,45.0]
[1723560462568,26.8405,146.19,146.12,45.0]
[1723560462762,26.8405,146.19,146.13,1.36851684]
[1723560462763,20.0,146.19,146.13,1.36851684]
[1723560463278,20.0,146.19,146.12,45.0]
[1723560463450,26.8404,146.19,146.12,45.0]
[1723560463955,20.0,146.19,146.12,45.0]
[1723560464165,20.0,146.19,146.13,1.4929131]
[1723560464364,20.0,146.19,146.13,0.12549]
[1723560464558,20.0,146.19,146.13,1.49197734]
[1723560464777,20.0,146.19,146.13,0.12549]
[1723560465068,26.8405,146.19,146.12,45.0]
[1723560465279,20.0,146.19,146.12,45.0]
[1723560465456,39.4,146.18,146.12,45.0]
[1723560465779,6.8427,146.15,146.1,15.8316]
[1723560466287,6.8441,146.11,145.98,39.4]
[1723560466587,46.2438,146.12,146.07,16.5776]
[1723560466781,20.0,146.11,146.07,16.5776]
[1723560467464,39.4,146.18,146.08,0.12549]
[1723560467664,39.4,146.18,146.08,46.54012955]
[1723560467665,20.0,146.17,146.08,46.54012955]
[1723560467880,26.8414,146.17,146.08,46.54012955]
[1723560468253,6.8422,146.16,146.08,45.37647]
[1723560468460,20.0,146.15,146.08,45.37647]
[1723560469353,26.8423,146.15,146.08,45.37647]
[1723560469784,6.8423,146.15,146.08,45.37647]
[1723560470675,39.4,146.16,146.08,45.37647]
[1723560470855,20.0,146.15,146.08,45.37647]
[1723560471178,6.8405,146.19,146.1,6.67699]
[1723560471357,26.8409,146.18,146.11,45.25098]
[1723560471690,66.2409,146.18,146.11,45.25098]
[1723560471995,59.4,146.18,146.11,45.25098]
[1723560472168,20.0,146.18,146.11,45.25098]
[1723560472368,26.8407,146.19,146.11,45.0]
[1723560472565,6.8409,146.18,146.11,45.98188459]
[1723560472772,20.0,146.17,146.11,45.0]
[1723560473063,20.0,146.17,146.12,0.98226987]
[1723560473368,20.0,146.17,146.12,15.1438]
[1723560473687,20.0,146.19,146.13,45.0]
[1723560475279,26.8405,146.19,146.13,45.0]
[1723560475490,20.0,146.19,146.13,45.0]
[1723560475867,26.8404,146.19,146.13,45.0]
[1723560476086,20.0,146.19,146.13,45.0]
[1723560477690,6.8408,146.19,146.13,45.0]
[1723560477984,20.0,146.18,146.13,45.0]
[1723560478189,26.8409,146.18,146.13,45.0]
[1723560478395,8.55225465,146.17,146.12,15.1438]
[1723560478691,59.4,146.16,146.12,15.1438]
[1723560478897,6.8427,146.15,146.12,15.1438]
[1723560479260,6.8427,146.14,146.12,15.1438]
[1723560479490,6.8424,146.15,146.12,15.1438]
[1723560479859,39.4,146.14,146.12,15.1438]
[1723560480080,39.4,146.14,146.08,16.5378]
[1723560480280,6.8441,146.11,146.08,16.5378]
[1723560480694,39.4,146.12,146.08,16.5378]
[1723560480883,20.0,146.11,146.08,16.5378]
[1723560481084,20.0,146.13,146.08,16.5378]
[1723560482176,20.0,146.15,146.09,1.36893578]
[1723560482497,20.0,146.15,146.08,16.5378]
[1723560482684,20.0,146.15,146.09,45.0]
[1723560482990,39.4,146.18,146.1,1.49286651]
[1723560483194,46.2401,146.2,146.11,1.49277292]
[1723560483394,46.2401,146.2,146.12,0.12549]
[1723560483882,39.4,146.2,146.13,21.6597]
[1723560484089,39.4,146.2,146.14,45.0]
[1723560484273,6.8407,146.19,146.14,45.0]
[1723560484703,46.24,146.2,146.14,45.0]
[1723560484997,39.4,146.2,146.14,45.0]
[1723560485188,46.55487952,146.22,146.15,1.4928176]
[1723560485799,53.39407952,146.22,146.15,0.12549]
[1723560485985,6.8395,146.21,146.14,45.0]
[1723560486191,46.55487952,146.22,146.14,45.0]
[1723560486394,46.55487952,146.22,146.15,1.16513976]
[1723560486395,20.0,146.21,146.15,1.16513976]
[1723560486702,17.0914,146.28,146.15,1.16513976]
[1723560486703,39.4,146.26,146.17,15.9254]
[1723560486888,46.2373,146.26,146.18,45.12549]
[1723560487070,39.4,146.26,146.19,0.12549]
[1723560487269,53.3883205,146.28,146.19,0.12549]
[1723560487469,53.3883205,146.28,146.2,6.6481]
[1723560487470,46.5520205,146.28,146.2,6.6481]
[1723560487698,46.5520205,146.28,146.21,46.49313096]
[1723560488289,39.4,146.28,146.21,46.49313096]
[1723560488496,48.96074569,146.3,146.21,46.49313096]
[1723560488675,48.96074569,146.3,146.23,15.9254]
[1723560488874,48.96074569,146.3,146.24,45.0]
[1723560489495,39.4,146.3,146.24,45.0]
[1723560489982,20.0,146.29,146.24,45.0]
[1723560490604,26.8358,146.29,146.24,45.0]
[1723560490811,6.8362,146.28,146.24,45.0]
[1723560491301,6.8367,146.27,146.23,15.9254]
[1723560491632,46.2371,146.26,146.23,15.9254]
[1723560491808,59.4,146.26,146.23,15.9254]
[1723560492307,20.0,146.25,146.23,15.9254]
[1723560492513,26.8376,146.25,146.23,15.9254]
[1723560492800,20.0,146.25,146.23,15.9254]
[1723560494782,20.0,146.27,146.23,15.9254]
[1723560495099,26.8367,146.27,146.23,15.9254]
[1723560495298,20.0,146.27,146.23,15.9254]
[1723560495505,6.8379,146.25,146.23,15.9254]
[1723560495688,39.4,146.26,146.23,15.9254]
[1723560495880,20.0,146.25,146.23,15.9254]
[1723560497203,20.0,146.25,146.2,6.6481]
[1723560497386,6.8388,146.23,146.21,45.0]
[1723560497586,8.54869741,146.23,146.21,45.0]
[1723560497778,39.4,146.26,146.21,45.0]
[1723560497982,20.0,146.25,146.21,45.0]
[1723560498615,6.8376,146.25,146.21,45.0]
[1723560498802,39.4,146.24,146.19,15.4023]
[1723560499004,46.2391,146.22,146.19,15.4023]
[1723560499187,6.8399,146.2,146.19,15.4023]
[1723560499391,6.8405,146.19,146.16,6.6625]
[1723560499718,40.0,146.26,146.15,15.0099]
[1723560499719,46.2387,146.23,146.15,15.0099]
[1723560499912,20.0,146.22,146.16,1.36627297]
[1723560500207,20.0,146.22,146.15,15.0099]
[1723560500398,39.4,146.27,146.15,15.0099]
[1723560500602,20.0,146.26,146.17,0.12549]
[1723560500799,6.8372,146.26,146.17,45.25098]
[1723560500998,46.2369,146.27,146.19,0.12549]
[1723560501214,39.4,146.27,146.19,0.25098]
[1723560501394,6.8365,146.28,146.2,16.69509]
[1723560501598,2.75052661,146.29,146.21,46.36636259]
[1723560501809,39.4,146.31,146.22,0.25098]
[1723560501996,6.8352,146.3,146.22,1.61842126]
[1723560502194,6.8352,146.3,146.23,6.0142]
[1723560502402,6.8358,146.29,146.24,45.0]
[1723560502594,48.99364531,146.31,146.24,45.0]
[1723560502795,46.2349,146.31,146.24,45.0]
[1723560503307,46.2349,146.31,146.25,0.12549]
[1723560503919,6.8352,146.3,146.24,45.0]
[1723560504090,66.2361,146.29,146.23,6.0142]
[1723560504424,20.0,146.29,146.23,6.0142]
[1723560504709,26.8358,146.29,146.23,6.0142]
[1723560504909,20.0,146.29,146.23,6.0142]
[1723560505393,20.0,146.3,146.24,45.12549]
[1723560505719,20.0,146.3,146.25,16.20699]
[1723560505886,20.0,146.31,146.26,45.0]
[1723560506092,20.0,146.32,146.26,45.0]
[1723560506312,26.8338,146.33,146.27,0.12549]
[1723560506891,8.54327079,146.32,146.26,45.0]
[1723560507214,59.4,146.31,146.25,16.0815]
[1723560507402,46.2358,146.29,146.25,16.0815]
[1723560507603,28.5455753,146.28,146.25,16.0815]
[1723560507801,20.0,146.28,146.25,16.0815]
[1723560508197,39.4,146.31,146.25,16.0815]
[1723560508386,6.8356,146.3,146.25,16.0815]
[1723560508590,29.18530005,146.35,146.25,16.0815]
[1723560508591,46.2342,146.33,146.25,16.0815]
[1723560508806,20.0,146.32,146.25,16.0815]
[1723560508999,20.0,146.32,146.26,0.12549]
[1723560509593,20.0,146.32,146.26,45.12549]
[1723560510002,26.8344,146.32,146.26,45.12549]
[1723560510194,26.8344,146.32,146.26,45.0]
[1723560511011,20.0,146.32,146.26,45.0]
[1723560511327,20.0,146.32,146.27,0.12549]
[1723560511523,26.8341,146.33,146.26,45.0]
[1723560511732,26.8341,146.33,146.27,0.12549]
[1723560511927,58.2841,146.33,146.27,0.12549]
[1723560512298,6.8343,146.32,146.26,45.0]
[1723560512503,20.0,146.31,146.26,45.0]
[1723560512721,20.0,146.31,146.26,46.367156]
[1723560513033,20.0,146.31,146.26,45.0]
[1723560513330,20.0,146.32,146.27,0.12549]